[Event "Late-Titled-Tuesday-Blitz-March-12-2024"]
[Site "Chess.com"]
[Date "2024.03.12"]
[Round "7"]
[White "stollenmonster"]
[Black "ncofre98"]
[Result "1-0"]
[WhiteElo "2856"]
[BlackElo "2611"]
[TimeControl "180+1"]
[EndTime "15:17:34 PDT"]
[Termination "stollenmonster won on time"]

1. e4 {[%clk 0:03:00.9]} 1... c5 {[%clk 0:02:59.7]} 2. Nf3 {[%clk 0:03:00.3]}
2... d6 {[%clk 0:02:59.5]} 3. d4 {[%clk 0:03:00.3]} 3... cxd4 {[%clk 0:03:00.4]}
4. Nxd4 {[%clk 0:03:00.8]} 4... Nf6 {[%clk 0:03:01.2]} 5. Nc3 {[%clk 0:03:01]}
5... g6 {[%clk 0:03:01.9]} 6. g3 {[%clk 0:03:01]} 6... Nc6 {[%clk 0:03:01.4]} 7.
Nde2 {[%clk 0:03:00.6]} 7... Bd7 {[%clk 0:03:01.2]} 8. Bg2 {[%clk 0:03:00.7]}
8... Qc8 {[%clk 0:03:01.9]} 9. h3 {[%clk 0:03:01.3]} 9... h5 {[%clk 0:03:01.9]}
10. Nf4 {[%clk 0:03:01.5]} 10... Bg7 {[%clk 0:03:01.6]} 11. Ncd5 {[%clk
0:02:59.9]} 11... Ne5 {[%clk 0:02:57.8]} 12. Nxf6+ {[%clk 0:02:56.9]} 12... Bxf6
{[%clk 0:02:58.7]} 13. Nd5 {[%clk 0:02:57]} 13... Bg7 {[%clk 0:02:59.4]} 14. Bg5
{[%clk 0:02:51.9]} 14... f6 {[%clk 0:02:37]} 15. Be3 {[%clk 0:02:46.6]} 15...
Kf7 {[%clk 0:02:14.6]} 16. Bd4 {[%clk 0:02:08.7]} 16... Be6 {[%clk 0:01:48.9]}
17. Ne3 {[%clk 0:01:55.4]} 17... Nc4 {[%clk 0:01:46.8]} 18. Nd5 {[%clk
0:01:36.4]} 18... Bxd5 {[%clk 0:01:08.9]} 19. exd5 {[%clk 0:01:33.6]} 19... f5
{[%clk 0:01:09.6]} 20. b3 {[%clk 0:01:16.6]} 20... Bxd4 {[%clk 0:01:00.5]} 21.
Qxd4 {[%clk 0:01:16]} 21... Ne5 {[%clk 0:01:01.2]} 22. Qd2 {[%clk 0:00:53.8]}
22... Qc5 {[%clk 0:00:55.8]} 23. c3 {[%clk 0:00:48.6]} 23... h4 {[%clk
0:00:52.6]} 24. f4 {[%clk 0:00:43.3]} 24... Nd7 {[%clk 0:00:49]} 25. g4 {[%clk
0:00:43.6]} 25... Nf6 {[%clk 0:00:44.7]} 26. O-O-O {[%clk 0:00:35.9]} 26... a5
{[%clk 0:00:39.7]} 27. Kb1 {[%clk 0:00:30.5]} 27... Rac8 {[%clk 0:00:29.9]} 28.
Rc1 {[%clk 0:00:28.3]} 28... fxg4 {[%clk 0:00:29.9]} 29. hxg4 {[%clk 0:00:27.3]}
29... Rc7 {[%clk 0:00:22]} 30. g5 {[%clk 0:00:24.6]} 30... Ng4 {[%clk
0:00:17.8]} 31. Bh3 {[%clk 0:00:22.8]} 31... Qe3 {[%clk 0:00:14.9]} 32. Qb2
{[%clk 0:00:19.6]} 32... Nf2 {[%clk 0:00:13.2]} 33. Be6+ {[%clk 0:00:19]} 33...
Kf8 {[%clk 0:00:11]} 34. c4 {[%clk 0:00:19.4]} 34... Rh7 {[%clk 0:00:10.7]} 35.
Rhe1 {[%clk 0:00:17.2]} 35... Qd3+ {[%clk 0:00:06.7]} 36. Ka1 {[%clk 0:00:17.3]}
36... Qf3 {[%clk 0:00:06.5]} 37. Rf1 {[%clk 0:00:16]} 37... Nd3 {[%clk
0:00:04.5]} 38. Rxf3 {[%clk 0:00:15.9]} 38... Nxb2 {[%clk 0:00:05.1]} 39. Kxb2
{[%clk 0:00:16.8]} 39... Kg7 {[%clk 0:00:04.7]} 40. Rh1 {[%clk 0:00:16.9]} 40...
b5 {[%clk 0:00:03.7]} 41. Kc3 {[%clk 0:00:15.9]} 41... bxc4 {[%clk 0:00:03.6]}
42. bxc4 {[%clk 0:00:16.8]} 42... Rb7 {[%clk 0:00:04]} 43. Rfh3 {[%clk
0:00:16.5]} 43... Rh8 {[%clk 0:00:04]} 44. Rxh4 {[%clk 0:00:16.7]} 44... Rxh4
{[%clk 0:00:03.1]} 45. Rxh4 {[%clk 0:00:17.6]} 45... Rb1 {[%clk 0:00:03.1]} 46.
f5 {[%clk 0:00:17.8]} 46... gxf5 {[%clk 0:00:02.9]} 47. Bxf5 {[%clk 0:00:18.7]}
47... Rc1+ {[%clk 0:00:03.3]} 48. Kd2 {[%clk 0:00:18.2]} 48... Rf1 {[%clk
0:00:03.3]} 49. Bd3 {[%clk 0:00:16.3]} 49... Rf2+ {[%clk 0:00:03.3]} 50. Ke3
{[%clk 0:00:16.6]} 50... Rxa2 {[%clk 0:00:03.3]} 51. Rh7+ {[%clk 0:00:16.7]}
51... Kg8 {[%clk 0:00:03.8]} 52. Rxe7 {[%clk 0:00:16.2]} 52... a4 {[%clk
0:00:04.3]} 53. Bh7+ {[%clk 0:00:14.9]} 53... Kh8 {[%clk 0:00:03.8]} 54. g6
{[%clk 0:00:14.2]} 54... Rg2 {[%clk 0:00:04.5]} 55. Kf3 {[%clk 0:00:13.2]} 55...
Rg1 {[%clk 0:00:04.1]} 56. c5 {[%clk 0:00:13.4]} 56... dxc5 {[%clk 0:00:02.8]}
57. d6 {[%clk 0:00:14]} 1-0

[Event "Late-Titled-Tuesday-Blitz-March-12-2024"]
[Site "Chess.com"]
[Date "2024.03.12"]
[Round "7"]
[White "nj123456"]
[Black "IMRosen"]
[Result "1/2-1/2"]
[WhiteElo "2485"]
[BlackElo "2680"]
[TimeControl "180+1"]
[EndTime "15:17:36 PDT"]
[Termination "Game drawn by repetition"]

1. e4 {[%clk 0:03:00.9]} 1... e5 {[%clk 0:02:57.9]} 2. Nf3 {[%clk 0:03:00.5]}
2... Nf6 {[%clk 0:02:56.7]} 3. Nxe5 {[%clk 0:02:55.9]} 3... Nc6 {[%clk
0:02:57.1]} 4. Nxc6 {[%clk 0:02:56.5]} 4... dxc6 {[%clk 0:02:58]} 5. d3 {[%clk
0:02:55.8]} 5... Bc5 {[%clk 0:02:58.6]} 6. Be2 {[%clk 0:02:56.1]} 6... h5 {[%clk
0:02:58.6]} 7. c3 {[%clk 0:02:52.6]} 7... Ng4 {[%clk 0:02:59.1]} 8. d4 {[%clk
0:02:46.6]} 8... Qh4 {[%clk 0:02:59.3]} 9. g3 {[%clk 0:02:32]} 9... Qf6 {[%clk
0:02:59.4]} 10. f3 {[%clk 0:02:03.5]} 10... h4 {[%clk 0:02:59.7]} 11. e5 {[%clk
0:01:48.2]} 11... Nxe5 {[%clk 0:02:42.4]} 12. dxe5 {[%clk 0:01:47.4]} 12... Qxe5
{[%clk 0:02:42.9]} 13. Bf4 {[%clk 0:01:46.4]} 13... Qe7 {[%clk 0:02:36.2]} 14.
g4 {[%clk 0:01:30.2]} 14... g5 {[%clk 0:02:13.9]} 15. Bc1 {[%clk 0:01:23.1]}
15... Be6 {[%clk 0:02:08.3]} 16. Nd2 {[%clk 0:01:17.3]} 16... O-O-O {[%clk
0:02:06.5]} 17. Qc2 {[%clk 0:01:17.2]} 17... f6 {[%clk 0:01:43.1]} 18. Ne4
{[%clk 0:01:15.8]} 18... Bb6 {[%clk 0:01:43.7]} 19. Bd2 {[%clk 0:01:11.9]} 19...
Qf7 {[%clk 0:01:38.5]} 20. b3 {[%clk 0:01:06]} 20... a5 {[%clk 0:01:09.5]} 21.
O-O-O {[%clk 0:01:02.4]} 21... a4 {[%clk 0:01:08]} 22. Kb2 {[%clk 0:01:01.7]}
22... Rhe8 {[%clk 0:00:56.5]} 23. c4 {[%clk 0:01:00.3]} 23... Bd4+ {[%clk
0:00:50.3]} 24. Bc3 {[%clk 0:01:00.6]} 24... c5 {[%clk 0:00:48.4]} 25. Rd2
{[%clk 0:00:54.1]} 25... Rd7 {[%clk 0:00:41.2]} 26. Rhd1 {[%clk 0:00:52.3]}
26... Red8 {[%clk 0:00:42]} 27. Bxd4 {[%clk 0:00:50.7]} 27... cxd4 {[%clk
0:00:40.5]} 28. Nc5 {[%clk 0:00:50.8]} 28... a3+ {[%clk 0:00:21.3]} 29. Kxa3
{[%clk 0:00:45.8]} 29... Qe7 {[%clk 0:00:19.6]} 30. b4 {[%clk 0:00:46.2]} 30...
Rd6 {[%clk 0:00:19.7]} 31. Nxe6 {[%clk 0:00:44.6]} 31... Rxe6 {[%clk 0:00:20.6]}
32. Bd3 {[%clk 0:00:44.8]} 32... Re3 {[%clk 0:00:13.7]} 33. Qa4 {[%clk
0:00:44.1]} 33... Kb8 {[%clk 0:00:13.6]} 34. Kb2 {[%clk 0:00:42.7]} 34... Rxf3
{[%clk 0:00:14]} 35. Re2 {[%clk 0:00:41]} 35... Re3 {[%clk 0:00:14]} 36. Rde1
{[%clk 0:00:39.8]} 36... Qe5 {[%clk 0:00:14.2]} 37. Qc2 {[%clk 0:00:38.2]} 37...
Re8 {[%clk 0:00:13.7]} 38. Rxe3 {[%clk 0:00:36.4]} 38... dxe3+ {[%clk
0:00:13.4]} 39. Qc3 {[%clk 0:00:37]} 39... Qxh2+ {[%clk 0:00:13.6]} 40. Re2
{[%clk 0:00:36.9]} 40... Qf4 {[%clk 0:00:14.3]} 41. c5 {[%clk 0:00:34.4]} 41...
h3 {[%clk 0:00:13.8]} 42. Qc4 {[%clk 0:00:20.5]} 42... h2 {[%clk 0:00:11]} 43.
Qxf4 {[%clk 0:00:19.7]} 43... gxf4 {[%clk 0:00:11.9]} 44. Rxh2 {[%clk
0:00:14.1]} 44... f3 {[%clk 0:00:12.5]} 45. Be2 {[%clk 0:00:10.5]} 45... fxe2
{[%clk 0:00:08.2]} 46. Rxe2 {[%clk 0:00:11.4]} 46... Re4 {[%clk 0:00:07.8]} 47.
Kc3 {[%clk 0:00:12.3]} 47... Ka7 {[%clk 0:00:04.7]} 48. a3 {[%clk 0:00:12.9]}
48... Ka6 {[%clk 0:00:02.9]} 49. Kd3 {[%clk 0:00:13.4]} 49... Rxg4 {[%clk
0:00:02.8]} 50. Rxe3 {[%clk 0:00:13.8]} 50... c6 {[%clk 0:00:01.6]} 51. Kc3
{[%clk 0:00:14.1]} 51... Rf4 {[%clk 0:00:02.1]} 52. Kb3 {[%clk 0:00:14.4]} 52...
Ka7 {[%clk 0:00:02.8]} 53. a4 {[%clk 0:00:14.3]} 53... Rf2 {[%clk 0:00:03.1]}
54. b5 {[%clk 0:00:14.1]} 54... Rf5 {[%clk 0:00:03.4]} 55. Kb4 {[%clk
0:00:14.3]} 55... Rf4+ {[%clk 0:00:03.4]} 56. Kb3 {[%clk 0:00:14.2]} 56... cxb5
{[%clk 0:00:03]} 57. axb5 {[%clk 0:00:15.1]} 57... Rf5 {[%clk 0:00:03.6]} 58.
Kb4 {[%clk 0:00:15]} 58... Rf1 {[%clk 0:00:04.3]} 59. Re7 {[%clk 0:00:14.4]}
59... Rb1+ {[%clk 0:00:04.2]} 60. Kc4 {[%clk 0:00:15]} 60... Rc1+ {[%clk
0:00:04.7]} 61. Kb4 {[%clk 0:00:15.6]} 61... Rb1+ {[%clk 0:00:05.1]} 62. Kc4
{[%clk 0:00:16.1]} 62... Rc1+ {[%clk 0:00:04.7]} 63. Kb4 {[%clk 0:00:16.5]}
63... Rb1+ {[%clk 0:00:02.6]} 1/2-1/2

[Event "Late-Titled-Tuesday-Blitz-March-12-2024"]
[Site "Chess.com"]
[Date "2024.03.12"]
[Round "7"]
[White "cthulhuuu"]
[Black "Mikasinski"]
[Result "1-0"]
[WhiteElo "2434"]
[BlackElo "2654"]
[TimeControl "180+1"]
[EndTime "15:17:36 PDT"]
[Termination "cthulhuuu won on time"]

1. e4 {[%clk 0:03:00]} 1... c5 {[%clk 0:02:59.9]} 2. Nf3 {[%clk 0:03:00.2]} 2...
d6 {[%clk 0:03:00.1]} 3. g3 {[%clk 0:02:59.4]} 3... g6 {[%clk 0:02:59.8]} 4. Bg2
{[%clk 0:02:59.7]} 4... Bg7 {[%clk 0:03:00.2]} 5. O-O {[%clk 0:03:00.4]} 5...
Nf6 {[%clk 0:03:00.2]} 6. d3 {[%clk 0:03:00.6]} 6... O-O {[%clk 0:03:00.6]} 7.
Re1 {[%clk 0:03:01.2]} 7... Nc6 {[%clk 0:03:00.7]} 8. e5 {[%clk 0:03:02]} 8...
dxe5 {[%clk 0:03:00.6]} 9. Nxe5 {[%clk 0:03:02.9]} 9... Nxe5 {[%clk 0:02:58.8]}
10. Rxe5 {[%clk 0:03:03.8]} 10... Qc7 {[%clk 0:02:58.7]} 11. Bf4 {[%clk
0:03:03.7]} 11... Qb6 {[%clk 0:02:59.2]} 12. Nc3 {[%clk 0:03:03.9]} 12... Qxb2
{[%clk 0:02:55.4]} 13. Rxc5 {[%clk 0:03:03.9]} 13... Nd7 {[%clk 0:02:45.5]} 14.
Rc7 {[%clk 0:03:03.7]} 14... Bxc3 {[%clk 0:02:34.4]} 15. Rb1 {[%clk 0:03:03.3]}
15... Qxa2 {[%clk 0:02:29.1]} 16. Rxc3 {[%clk 0:03:02.5]} 16... Qa5 {[%clk
0:02:25.2]} 17. Rcb3 {[%clk 0:02:53.8]} 17... e5 {[%clk 0:02:16.7]} 18. Bh6
{[%clk 0:02:45.5]} 18... Re8 {[%clk 0:02:15.4]} 19. Bxb7 {[%clk 0:02:44.6]}
19... Bxb7 {[%clk 0:02:14.5]} 20. Rxb7 {[%clk 0:02:45.5]} 20... Nc5 {[%clk
0:02:11.5]} 21. R7b5 {[%clk 0:02:45.1]} 21... Qc7 {[%clk 0:02:09.4]} 22. Qf3
{[%clk 0:02:44.9]} 22... f5 {[%clk 0:01:43.7]} 23. Qd5+ {[%clk 0:02:22.9]} 23...
Ne6 {[%clk 0:01:42.4]} 24. Rb7 {[%clk 0:01:23.1]} 24... Qd8 {[%clk 0:01:15]} 25.
Qxe5 {[%clk 0:01:14]} 25... Qd4 {[%clk 0:00:44.6]} 26. Rg7+ {[%clk 0:01:12]}
26... Kh8 {[%clk 0:00:41.6]} 27. Qxd4 {[%clk 0:00:52.2]} 27... Nxd4 {[%clk
0:00:42.5]} 28. Rbb7 {[%clk 0:00:52.3]} 28... Ne6 {[%clk 0:00:38.3]} 29. Rxh7+
{[%clk 0:00:51.1]} 29... Kg8 {[%clk 0:00:39]} 30. Rxa7 {[%clk 0:00:50.7]} 30...
Rxa7 {[%clk 0:00:37.4]} 31. Rxa7 {[%clk 0:00:50.8]} 31... g5 {[%clk 0:00:32.9]}
32. h4 {[%clk 0:00:41]} 32... g4 {[%clk 0:00:31.4]} 33. Be3 {[%clk 0:00:35.2]}
33... Rb8 {[%clk 0:00:26.7]} 34. h5 {[%clk 0:00:31.7]} 34... f4 {[%clk 0:00:22]}
35. gxf4 {[%clk 0:00:29.8]} 35... Rb5 {[%clk 0:00:18.2]} 36. h6 {[%clk
0:00:28.8]} 36... Rh5 {[%clk 0:00:18.2]} 37. h7+ {[%clk 0:00:29]} 37... Kh8
{[%clk 0:00:18.3]} 38. d4 {[%clk 0:00:22.8]} 38... Nf8 {[%clk 0:00:13.9]} 39.
Ra8 {[%clk 0:00:09.8]} 39... Rf5 {[%clk 0:00:12.8]} 40. d5 {[%clk 0:00:09.4]}
40... Kxh7 {[%clk 0:00:13.5]} 41. d6 {[%clk 0:00:08.5]} 41... Kg6 {[%clk
0:00:09.8]} 42. Ra7 {[%clk 0:00:07.8]} 42... Rd5 {[%clk 0:00:05.9]} 43. Ra6
{[%clk 0:00:03.4]} 43... Kf5 {[%clk 0:00:04.5]} 44. c4 {[%clk 0:00:03.8]} 44...
Rd1+ {[%clk 0:00:04.7]} 45. Kg2 {[%clk 0:00:04.1]} 45... Nd7 {[%clk 0:00:03.5]}
46. c5 {[%clk 0:00:03.6]} 46... Ke6 {[%clk 0:00:02]} 47. c6 {[%clk 0:00:03.7]}
47... Nb8 {[%clk 0:00:02.5]} 48. c7 {[%clk 0:00:03.5]} 48... Nd7 {[%clk
0:00:01.4]} 49. c8=Q {[%clk 0:00:04.4]} 1-0

[Event "Late-Titled-Tuesday-Blitz-March-12-2024"]
[Site "Chess.com"]
[Date "2024.03.12"]
[Round "7"]
[White "AlejandroArias"]
[Black "aqibjbutt"]
[Result "1-0"]
[WhiteElo "2361"]
[BlackElo "2074"]
[TimeControl "180+1"]
[EndTime "15:17:37 PDT"]
[Termination "AlejandroArias won by checkmate"]

1. e4 {[%clk 0:03:00.9]} 1... c6 {[%clk 0:02:59.4]} 2. d4 {[%clk 0:03:00.3]}
2... d5 {[%clk 0:03:00.2]} 3. exd5 {[%clk 0:03:01.1]} 3... cxd5 {[%clk
0:03:00.2]} 4. Bd3 {[%clk 0:03:00.7]} 4... Nc6 {[%clk 0:03:00.9]} 5. c3 {[%clk
0:03:00.5]} 5... Nf6 {[%clk 0:02:59.8]} 6. h3 {[%clk 0:02:59.7]} 6... g6 {[%clk
0:02:59.7]} 7. Nf3 {[%clk 0:02:59.2]} 7... Bg7 {[%clk 0:03:00.3]} 8. O-O {[%clk
0:02:59.1]} 8... O-O {[%clk 0:03:01.1]} 9. Re1 {[%clk 0:02:57.3]} 9... Rb8
{[%clk 0:02:58.9]} 10. Bf4 {[%clk 0:02:55.3]} 10... Ra8 {[%clk 0:02:57.2]} 11.
Nbd2 {[%clk 0:02:53.8]} 11... Bf5 {[%clk 0:02:56]} 12. Bf1 {[%clk 0:02:52.6]}
12... Ne4 {[%clk 0:02:55]} 13. g4 {[%clk 0:02:25]} 13... Nxd2 {[%clk 0:02:52.6]}
14. Qxd2 {[%clk 0:02:25.9]} 14... Be6 {[%clk 0:02:38.8]} 15. Bh6 {[%clk
0:02:16.1]} 15... Qd7 {[%clk 0:02:26]} 16. Bxg7 {[%clk 0:02:00.6]} 16... Kxg7
{[%clk 0:02:25.6]} 17. Qf4 {[%clk 0:02:00.3]} 17... f6 {[%clk 0:02:14.3]} 18.
Re3 {[%clk 0:01:45.7]} 18... Bf7 {[%clk 0:02:12.9]} 19. Rae1 {[%clk 0:01:37.1]}
19... Rae8 {[%clk 0:02:13.2]} 20. g5 {[%clk 0:01:30.5]} 20... Bg8 {[%clk
0:02:07.6]} 21. Qg3 {[%clk 0:01:20.6]} 21... fxg5 {[%clk 0:00:30.1]} 22. Nxg5
{[%clk 0:01:17.7]} 22... Rf5 {[%clk 0:00:26.7]} 23. Bd3 {[%clk 0:01:08.8]} 23...
Rf6 {[%clk 0:00:18.7]} 24. h4 {[%clk 0:01:06.2]} 24... Ref8 {[%clk 0:00:11.2]}
25. Bb5 {[%clk 0:00:52.1]} 25... Rf4 {[%clk 0:00:10.3]} 26. Bxc6 {[%clk
0:00:38]} 26... Qxc6 {[%clk 0:00:10.2]} 27. Rxe7+ {[%clk 0:00:37.1]} 27... Kh8
{[%clk 0:00:10.7]} 28. R1e3 {[%clk 0:00:20.2]} 28... Qf6 {[%clk 0:00:09.5]} 29.
Kh2 {[%clk 0:00:15.8]} 29... Rxf2+ {[%clk 0:00:09.1]} 30. Kh3 {[%clk 0:00:16.1]}
30... Rxb2 {[%clk 0:00:05.3]} 31. Qe5 {[%clk 0:00:14.1]} 31... Qxe5 {[%clk
0:00:02.5]} 32. R3xe5 {[%clk 0:00:14]} 32... Rff2 {[%clk 0:00:03.2]} 33. Re8
{[%clk 0:00:10.3]} 33... Rh2+ {[%clk 0:00:02.9]} 34. Kg3 {[%clk 0:00:10.3]}
34... Rbg2+ {[%clk 0:00:03.3]} 35. Kf3 {[%clk 0:00:10.6]} 35... Rf2+ {[%clk
0:00:03.8]} 36. Ke3 {[%clk 0:00:10.4]} 36... Re2+ {[%clk 0:00:03.6]} 37. Kf4
{[%clk 0:00:10.6]} 37... Rhf2+ {[%clk 0:00:03.4]} 38. Nf3 {[%clk 0:00:10.3]}
38... Rxe5 {[%clk 0:00:02.7]} 39. dxe5 {[%clk 0:00:09.2]} 39... Rxa2 {[%clk
0:00:02.5]} 40. e6 {[%clk 0:00:08.1]} 40... Re2 {[%clk 0:00:02.8]} 41. Nd4
{[%clk 0:00:04.9]} 41... Re4+ {[%clk 0:00:03]} 42. Kg5 {[%clk 0:00:04.2]} 42...
Kg7 {[%clk 0:00:03.9]} 43. Re7+ {[%clk 0:00:04]} 43... Kf8 {[%clk 0:00:03.7]}
44. Rxb7 {[%clk 0:00:03.8]} 44... Re5+ {[%clk 0:00:02.2]} 45. Kf6 {[%clk
0:00:04]} 45... Re4 {[%clk 0:00:01]} 46. Rb8# {[%clk 0:00:04]} 1-0

[Event "Late-Titled-Tuesday-Blitz-March-12-2024"]
[Site "Chess.com"]
[Date "2024.03.12"]
[Round "7"]
[White "BilodeauA"]
[Black "JSPrepz"]
[Result "1-0"]
[WhiteElo "3012"]
[BlackElo "2839"]
[TimeControl "180+1"]
[EndTime "15:17:40 PDT"]
[Termination "BilodeauA won by resignation"]

1. e4 {[%clk 0:03:00.9]} 1... e5 {[%clk 0:03:00.1]} 2. Nf3 {[%clk 0:03:00.8]}
2... Nc6 {[%clk 0:03:00.8]} 3. Bc4 {[%clk 0:03:01.1]} 3... Nf6 {[%clk 0:03:01]}
4. d3 {[%clk 0:03:01.6]} 4... h6 {[%clk 0:03:00.1]} 5. h3 {[%clk 0:02:59.7]}
5... g6 {[%clk 0:02:59.3]} 6. a4 {[%clk 0:02:57.6]} 6... Bg7 {[%clk 0:02:58.8]}
7. a5 {[%clk 0:02:58.1]} 7... O-O {[%clk 0:02:58.5]} 8. Nc3 {[%clk 0:02:56.1]}
8... d6 {[%clk 0:02:58.2]} 9. O-O {[%clk 0:02:56.3]} 9... Kh7 {[%clk 0:02:58]}
10. a6 {[%clk 0:02:53.9]} 10... b6 {[%clk 0:02:57.8]} 11. Be3 {[%clk 0:02:49.2]}
11... Na5 {[%clk 0:02:56.8]} 12. b4 {[%clk 0:02:43.8]} 12... Nxc4 {[%clk
0:02:54.8]} 13. dxc4 {[%clk 0:02:44.7]} 13... Be6 {[%clk 0:02:52.9]} 14. Qd3
{[%clk 0:02:40.1]} 14... Nh5 {[%clk 0:02:46.6]} 15. g4 {[%clk 0:02:31.9]} 15...
Qf6 {[%clk 0:02:23.2]} 16. Kg2 {[%clk 0:02:09]} 16... Nf4+ {[%clk 0:02:20.1]}
17. Bxf4 {[%clk 0:02:09.2]} 17... exf4 {[%clk 0:02:09.9]} 18. Nd5 {[%clk
0:02:09.7]} 18... Qd8 {[%clk 0:02:06.5]} 19. Rad1 {[%clk 0:02:05.1]} 19... Be5
{[%clk 0:01:50.8]} 20. b5 {[%clk 0:01:38.7]} 20... Bg7 {[%clk 0:00:36.3]} 21.
Nxf4 {[%clk 0:01:36.3]} 21... Bd7 {[%clk 0:00:34]} 22. Nd5 {[%clk 0:01:16.5]}
22... Re8 {[%clk 0:00:34.4]} 23. Rfe1 {[%clk 0:01:14]} 23... Rc8 {[%clk
0:00:34.8]} 24. Nd4 {[%clk 0:01:13.4]} 24... c6 {[%clk 0:00:26.6]} 25. bxc6
{[%clk 0:01:07.9]} 25... Bxc6 {[%clk 0:00:25.1]} 26. Nxc6 {[%clk 0:00:58.2]}
26... Rxc6 {[%clk 0:00:26]} 27. Ne3 {[%clk 0:00:49]} 27... Qc8 {[%clk
0:00:24.9]} 28. Qd5 {[%clk 0:00:48.3]} 28... Re7 {[%clk 0:00:17.4]} 29. Rd3
{[%clk 0:00:44.8]} 29... Re6 {[%clk 0:00:16.7]} 30. Ra3 {[%clk 0:00:40.1]} 30...
Bb2 {[%clk 0:00:12.6]} 31. Ra4 {[%clk 0:00:37.6]} 31... Bg7 {[%clk 0:00:09.4]}
32. Rd1 {[%clk 0:00:36.1]} 32... Qe8 {[%clk 0:00:05.4]} 33. Ra3 {[%clk
0:00:26.3]} 33... Rxe4 {[%clk 0:00:04.8]} 34. h4 {[%clk 0:00:24.6]} 34... Re5
{[%clk 0:00:05.1]} 35. Qd3 {[%clk 0:00:25]} 35... Kg8 {[%clk 0:00:04.2]} 36. h5
{[%clk 0:00:25]} 36... gxh5 {[%clk 0:00:03.2]} 37. gxh5 {[%clk 0:00:21.4]} 37...
Rxh5 {[%clk 0:00:04.1]} 38. Kf1 {[%clk 0:00:17.8]} 38... Rg5 {[%clk 0:00:05]}
39. Ke2 {[%clk 0:00:18.2]} 39... Rcc5 {[%clk 0:00:02.2]} 40. Rb3 {[%clk
0:00:18.7]} 40... Rce5 {[%clk 0:00:02.3]} 41. Qxd6 {[%clk 0:00:18.1]} 41... Re6
{[%clk 0:00:01.2]} 42. Qd8 {[%clk 0:00:18]} 42... Be5 {[%clk 0:00:01.5]} 43.
Qxe8+ {[%clk 0:00:18.1]} 43... Rxe8 {[%clk 0:00:02.4]} 44. Rd7 {[%clk
0:00:18.3]} 44... Bf4 {[%clk 0:00:02.5]} 45. Rxa7 {[%clk 0:00:17.8]} 45... Ra5
{[%clk 0:00:03.3]} 46. Rxb6 {[%clk 0:00:14.2]} 46... Ra2 {[%clk 0:00:03.5]} 47.
Kf3 {[%clk 0:00:13.9]} 47... Bxe3 {[%clk 0:00:02.3]} 48. fxe3 {[%clk 0:00:14.8]}
48... Rxc2 {[%clk 0:00:02]} 49. Rc7 {[%clk 0:00:13.1]} 49... Rc3 {[%clk
0:00:01.8]} 50. Rf6 {[%clk 0:00:08.1]} 50... Rcxe3+ {[%clk 0:00:02]} 51. Kg2
{[%clk 0:00:08.8]} 51... Re2+ {[%clk 0:00:02.6]} 52. Rf2 {[%clk 0:00:09]} 52...
Rxf2+ {[%clk 0:00:01.9]} 53. Kxf2 {[%clk 0:00:09.9]} 53... Ra8 {[%clk
0:00:01.9]} 54. a7 {[%clk 0:00:10.3]} 54... Kg7 {[%clk 0:00:02.6]} 55. c5 {[%clk
0:00:10]} 55... Kf6 {[%clk 0:00:03.2]} 56. Rd7 {[%clk 0:00:10.6]} 56... Ke6
{[%clk 0:00:03.6]} 57. c6 {[%clk 0:00:11.2]} 57... h5 {[%clk 0:00:03.9]} 58. Kg3
{[%clk 0:00:11.7]} 58... Kf5 {[%clk 0:00:03]} 59. c7 {[%clk 0:00:11.1]} 59...
Ke6 {[%clk 0:00:02.2]} 60. Rd8 {[%clk 0:00:11.4]} 60... Rxa7 {[%clk 0:00:02.8]}
61. c8=Q+ {[%clk 0:00:11.8]} 1-0